fUST/lending_fUST_20251025
["ID","MTS","AMOUNT","RATE_DAILY","PERIOD"]
[392315960,1761330650465,-5000.0,0.0002427,2]
[392315961,1761330650475,-402.0,0.00024308,2]
[392315962,1761330650486,-960.0,0.00024407,2]
[392315963,1761330650495,-208.14,0.00024456,2]
[392315964,1761330650504,-224.94850492,0.00024527,4]
[392315965,1761330650514,-160.0,0.00024532,3]
[392315966,1761330650524,-157.72642,0.00024537,2]
[392315967,1761330650534,-213.878824,0.00024658,2]
[392315968,1761330650545,-282.40665195,0.00024658,2]
[392315969,1761330650555,-151.0,0.00024658,2]
[392315970,1761330650564,-864.0,0.00024683,20]
[392315971,1761330650574,-151.0,0.00024713,2]
[392315972,1761330650583,-531.07794545,0.00024757,2]
[392315973,1761330650593,-202.88694548,0.00024768,2]
[392315974,1761330650602,-10053.80316414,0.00024774,2]
[392315975,1761330650612,-1745.51806735,0.000248,4]
[392315976,1761330650622,-200.0,0.00024873,2]
[392315977,1761330650632,-665467.4501,0.000249,2]
[392315978,1761330650641,-380.5,0.00024909,30]
[392315979,1761330650651,-1060.0,0.00024955,2]
[392315980,1761330650662,-1170.589126,0.0002498,5]
[392315981,1761330650672,-160.0,0.00025,30]
[392315982,1761330650682,-160.0,0.00025,30]
[392315983,1761330650691,-160.0,0.00025,30]
[392315984,1761330650702,-20000.0,0.00025,30]
[392315985,1761330650712,-11122.19693092,0.00025,3]
[392315986,1761330650724,-26723.59,0.00025,7]
[392315987,1761330650737,-403.33096709,0.00025,30]
[392315988,1761330650747,-403.33096709,0.00025,3]
[392315989,1761330650757,-1000.0,0.00025,5]
[392315990,1761330650767,-157.72642,0.0002505,7]
[392315991,1761330650777,-784.815305,0.0002509,2]
[392315992,1761330650786,-221.0,0.00025151,14]
[392315993,1761330650796,-160.0,0.00025229,4]
[392315994,1761330650806,-157.72642,0.0002525,3]
[392315995,1761330650815,-2000.0,0.00025263,7]
[392315996,1761330650825,-400.0,0.00025284,2]
[392315997,1761330650835,-900.0,0.00025315,2]
[392315998,1761330650844,-237.88,0.00025362,2]
[392315999,1761330650854,-830.85782609,0.00025451,30]
[392316000,1761330650864,-157.72642,0.000255,3]
[392316001,1761330650873,-1160.0,0.00025503,2]
[392316002,1761330650883,-187.5,0.00025526,2]
[392316003,1761330650893,-187.5,0.00025526,2]
[392316004,1761330650903,-2033.57,0.00025664,2]
[392316005,1761330650913,-414.1675535,0.00025695,2]
[392316006,1761330650923,-187.5,0.00025699,2]
[392316007,1761330650933,-169.33012,0.0002575,3]
[392316008,1761330650943,-157.72642,0.0002575,3]
[392316009,1761330650952,-187.5,0.00025833,6]
[392316010,1761330650962,-160.0,0.00025925,5]
[392316011,1761330650972,-502.2816524,0.00026,14]
[392316012,1761330650982,-169.33012,0.00026,3]
[392316013,1761330650992,-157.72642,0.00026,3]
[392316014,1761330651002,-181.710241,0.00026,3]
[392316015,1761330651012,-194.793503,0.00026,3]
[392316016,1761330651021,-727.3036541,0.00026008,2]
[392316017,1761330651031,-187.5,0.00026008,6]
[392316018,1761330651041,-187.5,0.00026008,6]
[392316019,1761330651051,-187.5,0.00026008,6]
[392316020,1761330651060,-187.5,0.00026008,6]
[392316021,1761330651070,-187.5,0.00026008,6]
[392316022,1761330651079,-187.5,0.00026008,6]
[392316023,1761330651089,-187.5,0.00026008,6]
[392316024,1761330651101,-187.5,0.00026049,6]
[392316025,1761330651111,-1023.81934985,0.00026051,2]
[392316026,1761330651123,-157.72642,0.00026075,7]
[392316027,1761330651133,-2829.27167599,0.000261,7]
[392316028,1761330651143,-5984.3030706,0.00026122,2]
[392316029,1761330651153,-187.5,0.0002614,10]
[392316030,1761330651163,-169.33012,0.00026182,2]
[392316031,1761330651173,-157.72642,0.00026182,2]
[392316032,1761330651182,-194.793503,0.00026182,2]
[392316033,1761330651194,-172.0,0.00026247,19]
[392316034,1761330651205,-267.61,0.00026267,2]
[392316035,1761330651215,-26723.59,0.000263,7]
[392316036,1761330651225,-2000.0,0.00026316,7]
[392316037,1761330651235,-187.5,0.00026317,10]
[392316038,1761330651245,-983.0,0.00026344,2]
[392316039,1761330651256,-632.0,0.00026344,2]
[392316040,1761330651267,-2165.0,0.00026344,2]
[392316041,1761330651278,-411.0,0.00026344,2]
[392316042,1761330651288,-411.0,0.00026344,2]
[392316043,1761330651298,-187.5,0.00026359,10]
[392316044,1761330651308,-187.5,0.00026447,14]
[392316045,1761330651317,-187.5,0.00026447,14]
[392316046,1761330651327,-8000.0,0.00026462,2]
[392316047,1761330651337,-203.06612858,0.000265,2]
[392316048,1761330651347,-160.0,0.00026621,6]
[392316049,1761330651356,-187.5,0.00026626,14]
[392316050,1761330651366,-187.5,0.00026626,14]
[392316051,1761330651376,-187.5,0.00026626,14]
[392316052,1761330651386,-187.5,0.00026669,14]
[392316053,1761330651395,-187.5,0.00026669,14]
[392316054,1761330651405,-187.5,0.00026669,14]
[392316055,1761330651414,-800.099928,0.00026673,2]
[392316056,1761330651424,-1031.981003,0.00026676,2]
[392316057,1761330651434,-3030.44339862,0.00026691,2]
[392316058,1761330651444,-187.5,0.00026754,18]
[392316059,1761330651454,-187.5,0.00026754,18]
[392316060,1761330651464,-593.15199102,0.00026757,2]
[392316061,1761330651474,-187.5,0.00026936,18]
[392316062,1761330651483,-187.5,0.00026936,18]
[392316063,1761330651493,-187.5,0.00026936,18]
[392316064,1761330651502,-187.5,0.00026936,18]
[392316065,1761330651512,-187.5,0.00026978,18]
[392316066,1761330651521,-187.5,0.00026978,18]
[392316067,1761330651531,-187.5,0.00026978,18]
[392316068,1761330651541,-187.5,0.00026978,18]
[392316069,1761330651552,-714.78,0.00027,3]
[392316070,1761330651561,-403.33096709,0.00027,7]
[392316071,1761330651571,-169.33012,0.000271,7]
[392316072,1761330651582,-157.72642,0.000271,7]
[392316073,1761330651592,-1000.0,0.00027151,30]
[392316074,1761330651602,-297.34,0.00027173,2]
[392316075,1761330651613,-187.5,0.00027232,22]
[392316076,1761330651624,-187.5,0.00027232,22]
[392316077,1761330651634,-187.5,0.00027245,22]
[392316078,1761330651643,-187.5,0.00027245,22]
[392316079,1761330651653,-187.5,0.00027245,22]
[392316080,1761330651662,-187.5,0.00027245,22]
[392316081,1761330651672,-187.5,0.00027245,22]
[392316082,1761330651681,-187.5,0.00027245,22]
[392316083,1761330651691,-187.5,0.00027245,22]
[392316084,1761330651700,-187.5,0.00027246,22]
[392316085,1761330651711,-187.5,0.00027246,22]
[392316086,1761330651721,-187.5,0.00027246,22]
[392316087,1761330651730,-187.5,0.00027288,22]
[392316088,1761330651740,-187.5,0.00027288,22]
[392316089,1761330651750,-187.5,0.00027288,22]
[392316090,1761330651759,-187.5,0.00027288,22]
[392316091,1761330651768,-160.0,0.00027318,7]
[392316092,1761330651778,-189.0,0.00027342,24]
[392316093,1761330651788,-187.5,0.00027349,26]
[392316094,1761330651798,-187.5,0.00027349,26]
[392316095,1761330651808,-187.5,0.00027349,26]
[392316096,1761330651818,-2000.0,0.00027368,7]
[392316097,1761330651828,-187.5,0.00027383,22]
[392316098,1761330651838,-187.5,0.00027383,22]
[392316099,1761330651847,-187.5,0.00027383,22]
[392316100,1761330651857,-198.79012974,0.0002739,2]
[392316101,1761330651869,-150.0,0.0002739,2]
[392316102,1761330651879,-897.1682943,0.00027397,2]
[392316103,1761330651888,-170.79630571,0.00027397,2]
[392316104,1761330651898,-151.0,0.00027397,2]
[392316105,1761330651908,-156.133614,0.00027397,30]
[392316106,1761330651918,-500.0,0.00027397,5]
[392316107,1761330651928,-1852.64,0.000274,7]
[392316108,1761330651938,-6657.84,0.000274,2]
[392316109,1761330651948,-151.0,0.00027452,2]
[392316110,1761330651958,-45565.16210626,0.000275,2]
[392316111,1761330651968,-151.0,0.00027507,2]
[392316112,1761330651978,-900.0,0.00027507,7]
[392316113,1761330651987,-187.5,0.00027541,26]
[392316114,1761330651997,-187.5,0.00027541,26]
[392316115,1761330652007,-187.5,0.00027541,26]
[392316116,1761330652017,-187.5,0.00027541,26]
[392316117,1761330652027,-187.5,0.00027554,26]
[392316118,1761330652036,-187.5,0.00027554,26]
[392316119,1761330652045,-187.5,0.00027555,26]
[392316120,1761330652055,-187.5,0.00027555,26]
[392316121,1761330652065,-187.5,0.00027555,26]
[392316122,1761330652075,-187.5,0.00027555,26]
[392316123,1761330652085,-235.08812862,0.00027561,2]
[392316124,1761330652094,-225.17345343,0.00027562,7]
[392316125,1761330652104,-187.5,0.00027598,26]
[392316126,1761330652114,-187.5,0.00027598,26]
[392316127,1761330652128,-187.5,0.00027598,26]
[392316128,1761330652138,-26723.59,0.000276,7]
[392316129,1761330652147,-187.5,0.00027656,30]
[392316130,1761330652156,-187.5,0.00027656,30]
[392316131,1761330652166,-187.5,0.00027656,30]
[392316132,1761330652176,-187.5,0.00027656,30]
[392316133,1761330652185,-360.55,0.00027671,7]
[392316134,1761330652195,-187.5,0.00027693,26]
[392316135,1761330652207,-187.5,0.00027693,26]
[392316136,1761330652217,-187.5,0.00027693,26]
[392316137,1761330652226,-187.5,0.00027693,26]
[392316138,1761330652236,-331.86752347,0.0002772,30]
[392316139,1761330652245,-150.0,0.0002772,30]
[392316140,1761330652255,-505.0,0.00027777,5]
[392316141,1761330652264,-500.0,0.00027777,5]
[392316142,1761330652274,-500.0,0.00027778,5]
[392316143,1761330652284,-187.5,0.0002785,30]
[392316144,1761330652294,-187.5,0.0002785,30]
[392316145,1761330652304,-187.5,0.0002785,30]
[392316146,1761330652314,-187.5,0.0002785,30]
[392316147,1761330652323,-187.5,0.00027863,30]
[392316148,1761330652333,-187.5,0.00027863,30]
[392316149,1761330652343,-187.5,0.00027863,30]
[392316150,1761330652353,-187.5,0.00027863,30]
[392316151,1761330652362,-187.5,0.00027863,30]
[392316152,1761330652372,-187.5,0.00027863,30]
[392316153,1761330652382,-187.5,0.00027863,30]
[392316154,1761330652391,-187.5,0.00027863,30]
[392316155,1761330652400,-187.5,0.00027864,30]
[392316156,1761330652410,-187.5,0.00027864,30]
[392316157,1761330652419,-187.5,0.00027864,30]
[392316158,1761330652429,-187.5,0.00027864,30]
[392316159,1761330652438,-32307.87098473,0.0002787,7]
[392316160,1761330652448,-187.5,0.00027907,30]
[392316161,1761330652458,-187.5,0.00027907,30]
[392316162,1761330652467,-187.5,0.00027907,30]
[392316163,1761330652477,-187.5,0.00027907,30]
[392316164,1761330652486,-360.55,0.00027945,8]
[392316165,1761330652495,-1002.15239541,0.00027945,5]
[392316166,1761330652504,-180.0,0.00028,2]
[392316167,1761330652514,-15198.06154132,0.00028,2]
[392316168,1761330652524,-940.35539722,0.00028,2]
[392316169,1761330652533,-7445.1186321,0.00028,2]
[392316170,1761330652543,-1852.64,0.00028,7]
[392316171,1761330652553,-6657.84,0.00028,2]
[392316172,1761330652563,-187.5,0.00028004,30]
[392316173,1761330652572,-187.5,0.00028004,30]
[392316174,1761330652582,-187.5,0.00028004,30]
[392316175,1761330652591,-187.5,0.00028004,30]
[392316176,1761330652601,-160.0,0.00028014,8]
[392316177,1761330652612,-360.55,0.00028219,9]
[392316178,1761330652621,-2000.0,0.00028421,7]
[392316179,1761330652631,-371.920697,0.00028437,15]
[392316180,1761330652640,-186.0,0.00028438,29]
[392316181,1761330652649,-360.55,0.00028493,10]
[392316182,1761330652659,-160.0,0.0002871,9]
[392316183,1761330652668,-655.22603659,0.00028757,2]
[392316184,1761330652677,-433.55517201,0.0002876,2]
[392316185,1761330652686,-360.55,0.00028767,11]
[392316186,1761330652695,-6657.84,0.000288,2]
[392316187,1761330652704,-1852.64,0.000289,7]
[392316188,1761330652714,-500.0,0.00028998,7]
[392316189,1761330652723,-112947.26971057,0.00029,5]
[392316190,1761330652884,-502.80839277,0.00029,7]
[392316191,1761330652895,-262.73,0.00029,30]
[392316192,1761330652905,-1061.39,0.00029,2]
[392316193,1761330652915,-360.55,0.00029041,12]
[392316194,1761330652924,-26723.59,0.000291,7]
[392316195,1761330652934,-500.0,0.0002913,5]
[392316196,1761330652943,-500.0,0.0002913,5]
[392316197,1761330652952,-500.0,0.0002913,5]
[392316198,1761330652962,-500.0,0.0002913,5]
[392316199,1761330652973,-900.0,0.00029151,7]
[392316200,1761330652982,-1061.39,0.00029174,2]
[392316201,1761330652991,-500.0,0.00029208,7]
[392316202,1761330653000,-5984.3030706,0.00029233,2]
[392316203,1761330653010,-360.55,0.00029315,13]
[392316204,1761330653019,-2165.0,0.00029344,2]
[392316205,1761330653029,-368.512,0.00029344,2]
[392316206,1761330653039,-411.0,0.00029344,2]
[392316207,1761330653048,-1061.39,0.00029348,2]
[392316208,1761330653058,-3030.44339862,0.00029366,2]
[392316209,1761330653067,-2021.56435318,0.0002939,5]
[392316210,1761330653077,-6657.84,0.000294,2]
[392316211,1761330653086,-160.0,0.00029407,10]
[392316212,1761330653096,-2000.0,0.00029474,7]
[392316213,1761330653106,-12500.0,0.00029491,10]
[392316214,1761330653115,-1852.64,0.000295,7]
[392316215,1761330653130,-12500.0,0.000295,10]
[392316216,1761330653139,-9421.19904085,0.000295,10]
[392316217,1761330653148,-213.16,0.0002951,7]
[392316218,1761330653158,-1061.39,0.00029522,2]
[392316219,1761330653167,-237.0,0.00029534,35]
[392316220,1761330653175,-708.61798702,0.0002955,30]
[392316221,1761330653184,-95000.0,0.0002956,2]
[392316222,1761330653192,-360.55,0.00029589,14]
[392316223,1761330653201,-1061.39,0.00029696,2]
[392316224,1761330653209,-360.55,0.00029863,15]
[392316225,1761330653218,-1000.0,0.00029866,30]
[392316226,1761330653227,-244.0,0.00029866,30]
[392316227,1761330653237,-42974.0,0.0002987,7]
[392316228,1761330653247,-1061.39,0.0002987,2]
[392316229,1761330653257,-500.0,0.00029875,7]
[392316230,1761330653265,-159.81,0.00029999,2]
[392316231,1761330653274,-479.44,0.00029999,2]
[392316232,1761330653285,-983.41294918,0.0003,30]
[392316233,1761330653294,-785.81490251,0.0003,60]
[392316234,1761330653303,-1091.18168588,0.0003,30]
[392316235,1761330653313,-500.0,0.0003,3]
[392316236,1761330653322,-639.0,0.0003,15]
[392316237,1761330653331,-160.0,0.0003,10]
[392316238,1761330653340,-407.28894204,0.0003,10]
[392316239,1761330653349,-8260.25049207,0.0003,10]
[392316240,1761330653358,-1581.72642679,0.0003,10]
[392316241,1761330653368,-1700.03343874,0.0003,2]
[392316242,1761330653377,-1180.67,0.0003,7]
[392316243,1761330653386,-40104.76030223,0.0003,2]
[392316244,1761330653395,-3919.13520877,0.0003,2]
[392316245,1761330653404,-2086.33539858,0.0003,2]
[392316246,1761330653413,-796061.03390425,0.0003,20]
[392316247,1761330653422,-17774.20446933,0.0003,2]
[392316248,1761330653431,-1299.999999,0.0003,2]
[392316249,1761330653441,-1508.94120959,0.0003,2]
[392316250,1761330653450,-150.0,0.0003,2]
[392316251,1761330653459,-160.0,0.0003,10]
[392316252,1761330653469,-160.0,0.0003,10]
[392316253,1761330653478,-403.33096709,0.0003,10]
[392316254,1761330653488,-500.0,0.0003,31]
[392316255,1761330653498,-186.855,0.0003,2]
[392316256,1761330653507,-1489.0,0.0003,2]
[392316257,1761330653517,-25000.0,0.0003,2]
[392316258,1761330653527,-186.90675,0.0003,2]
[392316259,1761330653536,-1517.044096,0.0003,2]
[392316260,1761330653545,-1061.39,0.00030044,30]
[392316261,1761330653554,-201.16,0.000301,7]
[392316262,1761330653564,-20101.71206,0.000301,2]
[392316263,1761330653574,-160.0,0.00030103,11]
[392316264,1761330653583,-25000.0,0.00030125,2]
[392316265,1761330653593,-1000.0,0.0003013,2]
[392316266,1761330653603,-1000.0,0.0003013,2]
[392316267,1761330653612,-1000.0,0.0003013,2]
[392316268,1761330653621,-1000.0,0.0003013,2]
[392316269,1761330653631,-1000.0,0.0003013,2]
[392316270,1761330653640,-1000.0,0.0003013,2]
[392316271,1761330653649,-1000.0,0.0003013,2]
[392316272,1761330653659,-1000.0,0.0003013,2]
[392316273,1761330653668,-1000.0,0.0003013,2]
[392316274,1761330653678,-1000.0,0.0003013,2]
[392316275,1761330653687,-1000.0,0.0003013,2]
[392316276,1761330653697,-1000.0,0.0003013,2]
[392316277,1761330653707,-1000.0,0.0003013,2]
[392316278,1761330653718,-1000.0,0.0003013,2]
[392316279,1761330653727,-1000.0,0.0003013,2]
[392316280,1761330653735,-1000.0,0.0003013,2]
[392316281,1761330653745,-1000.0,0.0003013,2]
[392316282,1761330653753,-1000.0,0.0003013,2]
[392316283,1761330653762,-1000.0,0.0003013,2]
[392316284,1761330653771,-1000.0,0.0003013,2]
[392316285,1761330653781,-1000.0,0.0003013,2]
[392316286,1761330653791,-1000.0,0.0003013,2]
[392316287,1761330653800,-1000.0,0.0003013,2]
[392316288,1761330653810,-1000.0,0.0003013,2]
[392316289,1761330653819,-1000.0,0.0003013,2]
[392316290,1761330653829,-1000.0,0.0003013,2]
[392316291,1761330653839,-1000.0,0.0003013,2]
[392316292,1761330653848,-186.95,0.0003013,2]
[392316293,1761330653859,-1000.0,0.0003013,2]
[392316294,1761330653868,-1000.0,0.0003013,2]
[392316295,1761330653878,-1000.0,0.0003013,2]
[392316296,1761330653887,-1000.0,0.0003013,2]
[392316297,1761330653897,-1000.0,0.0003013,2]
[392316298,1761330653907,-1000.0,0.0003013,2]
[392316299,1761330653916,-1000.0,0.0003013,2]
[392316300,1761330653927,-1000.0,0.0003013,2]
[392316301,1761330653938,-1000.00548365,0.0003013,15]
[392316302,1761330653948,-360.55,0.00030136,16]
[392316303,1761330653958,-1000.0,0.00030137,14]
[392316304,1761330653968,-1000.0,0.00030137,14]
[392316305,1761330653979,-1000.0,0.00030137,14]
[392316306,1761330653989,-1000.0,0.00030137,14]
[392316307,1761330653998,-1000.0,0.00030137,14]
[392316308,1761330654008,-417.87515628,0.00030137,14]
[392316309,1761330654018,-165.23434652,0.00030137,14]
[392316310,1761330654027,-21825.75833888,0.00030156,2]
[392316311,1761330654037,-25000.0,0.0003025,2]
[392316312,1761330654046,-25000.0,0.00030375,2]
[392316313,1761330654056,-360.55,0.0003041,17]
[392316314,1761330654066,-500.0,0.0003046,7]
[392316315,1761330654076,-25000.0,0.000305,2]
[392316316,1761330654086,-2000.0,0.00030526,7]
[392316317,1761330654096,-26723.59,0.000306,7]
[392316318,1761330654106,-21515.64,0.00030625,2]
[392316319,1761330654115,-360.55,0.00030684,18]
[392316320,1761330654131,-717.30008216,0.00030757,2]
[392316321,1761330654142,-392.13769644,0.0003079,30]
[392316322,1761330654152,-900.0,0.00030795,7]
[392316323,1761330654162,-160.0,0.000308,12]
[392316324,1761330654173,-360.55,0.00030958,19]
[392316325,1761330654183,-303.8835489,0.0003099,2]
[392316326,1761330654193,-350.0,0.00031,60]
[392316327,1761330654205,-200.0,0.00031,7]
[392316328,1761330654214,-194.0,0.00031178,44]
[392316329,1761330654225,-360.55,0.00031232,20]
[392316330,1761330654235,-160.0,0.00031496,13]
[392316331,1761330654245,-171.3217159,0.00031496,5]
[392316332,1761330654255,-360.55,0.00031506,21]
[392316333,1761330654265,-2000.0,0.00031579,7]
[392316334,1761330654274,-360.55,0.0003178,22]
[392316335,1761330654284,-4656.85270432,0.0003187,7]
[392316336,1761330654294,-10001.20706415,0.00032,2]
[392316337,1761330654304,-3030.44339862,0.00032041,2]
[392316338,1761330654313,-360.55,0.00032054,23]
[392316339,1761330654323,-360.55,0.00032328,24]
[392316340,1761330654333,-2165.0,0.00032344,2]
[392316341,1761330654343,-411.0,0.00032344,2]
[392316342,1761330654352,-5984.3030706,0.00032344,2]
[392316343,1761330654361,-26723.59,0.000324,7]
[392316344,1761330654371,-900.0,0.00032439,7]
[392316345,1761330654380,-500.0,0.00032517,7]
[392316346,1761330654389,-500.0,0.00032601,7]
[392316347,1761330654399,-360.55,0.00032602,25]
[392316348,1761330654408,-500.0,0.00032612,7]
[392316349,1761330654419,-2000.0,0.00032632,7]
[392316350,1761330654429,-580.62,0.00032648,15]
[392316351,1761330654438,-500.0,0.00032656,7]
[392316352,1761330654449,-503.26827863,0.00032741,7]
[392316353,1761330654458,-580.62,0.00032748,15]
[392316354,1761330654468,-779.37412773,0.00032757,2]
[392316355,1761330654478,-206.0,0.00032822,56]
[392316356,1761330654487,-580.62,0.00032848,15]
[392316357,1761330654497,-1000.0,0.00032853,30]
[392316358,1761330654507,-492.0,0.00032853,30]
[392316359,1761330654516,-360.55,0.00032876,26]
[392316360,1761330654526,-500.0,0.00032876,2]
[392316361,1761330654535,-498.05887877,0.00032876,2]
[392316362,1761330654546,-398.52471331,0.00032876,2]
[392316363,1761330654555,-286.25739313,0.00032876,2]
[392316364,1761330654565,-547.18620459,0.00032876,2]
[392316365,1761330654574,-500.0,0.00032876,2]
[392316366,1761330654584,-500.0,0.00032876,2]
[392316367,1761330654594,-828.67778523,0.00032876,2]
[392316368,1761330654603,-281.56142253,0.00032876,2]
[392316369,1761330654614,-500.0,0.00032876,2]
[392316370,1761330654624,-828.67778523,0.00032876,2]
[392316371,1761330654633,-500.0,0.00032876,2]
[392316372,1761330654642,-828.67778523,0.00032876,2]
[392316373,1761330654651,-828.67778523,0.00032876,2]
[392316374,1761330654661,-828.67778523,0.00032876,2]
[392316375,1761330654670,-828.67778523,0.00032876,2]
[392316376,1761330654679,-828.67778523,0.00032876,2]
[392316377,1761330654688,-828.67778523,0.00032876,2]
[392316378,1761330654697,-828.67778523,0.00032876,2]
[392316379,1761330654707,-994.41334228,0.00032876,2]
[392316380,1761330654716,-994.41334228,0.00032876,2]
[392316381,1761330654726,-151.0,0.00032877,30]
[392316382,1761330654735,-151.0,0.00032877,30]
[392316383,1761330654744,-151.0,0.00032877,30]
[392316384,1761330654753,-151.0,0.00032877,30]
[392316385,1761330654763,-151.0,0.00032877,30]
[392316386,1761330654772,-151.0,0.00032877,30]
[392316387,1761330654782,-151.0,0.00032877,30]
[392316388,1761330654791,-151.0,0.00032877,30]
[392316389,1761330654800,-151.0,0.00032877,30]
[392316390,1761330654811,-156.152066,0.00032877,30]
[392316391,1761330654820,-17757.15,0.00032877,10]
[392316392,1761330654830,-14797.62,0.00032877,10]
[392316393,1761330654840,-580.62,0.00032948,60]
[392316394,1761330654849,-975.94,0.00033,2]
[392316395,1761330654859,-580.62,0.00033048,60]
[392316396,1761330654868,-580.62,0.00033148,60]
[392316397,1761330654878,-360.55,0.0003315,27]
[392316398,1761330654887,-1031.981003,0.00033165,2]
[392316399,1761330654897,-171.00179054,0.000332,117]
[392316400,1761330654907,-171.00179052,0.000332,117]
[392316401,1761330654916,-171.00179052,0.000332,117]
[392316402,1761330654926,-171.00179052,0.000332,117]
[392316403,1761330654936,-580.62,0.00033248,60]
[392316404,1761330654946,-580.62,0.00033348,60]
[392316405,1761330654956,-360.55,0.00033424,28]
[392316406,1761330654966,-580.62,0.00033448,60]
[392316407,1761330654976,-580.62,0.00033548,60]
[392316408,1761330654985,-580.62,0.00033648,60]
[392316409,1761330654995,-2000.0,0.00033684,7]
[392316410,1761330655004,-360.55,0.00033698,29]
[392316411,1761330655014,-580.62,0.00033748,60]
[392316412,1761330655024,-200.0,0.00033802,120]
[392316413,1761330655034,-440.17632411,0.0003383,2]
[392316414,1761330655046,-580.62,0.00033848,60]
[392316415,1761330655058,-200.0,0.00033925,120]
[392316416,1761330655068,-580.62,0.00033948,60]
[392316417,1761330655078,-360.59439036,0.00033972,30]
[392316418,1761330655087,-5061.56599495,0.0003398,2]
[392316419,1761330655099,-302.0,0.00033984,2]
[392316420,1761330655108,-302.0,0.00033985,2]
[392316421,1761330655118,-500.0,0.0003399,10]
[392316422,1761330655133,-504.64941075,0.0003399,10]
[392316423,1761330655143,-500.0,0.0003399,10]
[392316424,1761330655154,-302.0,0.00033991,2]
[392316425,1761330655166,-4000.0,0.00034,30]
[392316426,1761330655176,-48583.0,0.00034,14]
[392316427,1761330655187,-1852.64,0.00034,7]
[392316428,1761330655199,-302.0,0.00034006,2]
[392316429,1761330655209,-277.50529751,0.00034021,2]
[392316430,1761330655218,-179.94307397,0.00034021,12]
[392316431,1761330655228,-302.0,0.00034026,2]
[392316432,1761330655237,-302.0,0.00034026,2]
[392316433,1761330655247,-580.62,0.00034048,60]
[392316434,1761330655256,-900.0,0.00034083,7]
[392316435,1761330655265,-200.0,0.00034105,120]
[392316436,1761330655274,-200.0,0.00034139,120]
[392316437,1761330655283,-580.62,0.00034148,60]
[392316438,1761330655293,-200.0,0.00034163,120]
[392316439,1761330655302,-580.62,0.00034248,60]
[392316440,1761330655311,-883.20317117,0.0003426,7]
[392316441,1761330655321,-200.0,0.00034345,120]
[392316442,1761330655330,-580.62,0.00034348,60]
[392316443,1761330655339,-200.0,0.00034418,120]
[392316444,1761330655349,-580.62,0.00034448,60]
[392316445,1761330655358,-580.62,0.00034548,60]
[392316446,1761330655367,-3365.04632188,0.0003461,49]
[392316447,1761330655376,-394.13996608,0.00034624,47]
[392316448,1761330655386,-5000.0,0.00034628,49]
[392316449,1761330655395,-5000.0,0.00034628,50]
[392316450,1761330655404,-580.62,0.00034648,60]
[392316451,1761330655414,-707.2690171,0.00034673,7]
[392316452,1761330655423,-3030.44339862,0.00034715,2]
[392316453,1761330655433,-1359.87106308,0.00034728,12]
[392316454,1761330655443,-2000.0,0.00034737,7]
[392316455,1761330655452,-580.62,0.00034748,60]
[392316456,1761330655461,-841.44817331,0.00034757,120]
[392316457,1761330655471,-171.00179052,0.0003481,120]
[392316458,1761330655480,-580.62,0.00034848,60]
[392316459,1761330655647,-5058.38030998,0.00034877,50]